[Event "Sardinia World Festival-A 2024"]
[Site "Orosei"]
[Date "2024.05.01"]
[Round "6.38"]
[White "Maldonado Gonzales, Stefano"]
[Black "Atanasov, Anthony"]
[Result "0-1"]
[ECO "C55"]
[WhiteElo "2218"]
[BlackElo "2407"]
[Annotator "TA"]
[PlyCount "88"]
[EventDate "2024.04.26"]
[EventType "swiss"]
[EventCountry "ITA"]
[SourceTitle "playchess.com"]
[Source "ChessBase"]
[SourceQuality "1"]
[TimeControl "40/5400+30:1800+30"]

{[%evp 13,88,7,18,17,9,-8,-6,-14,0,-16,1,-12,-14,-20,-7,-22,-12,-44,-39,-45,-36,-57,-70,-70,-63,-62,-58,-79,-27,-48,-55,-93,-68,-112,-99,-100,-106,-172,-169,-166,-169,-154,-174,-148,-119,-148,-148,-141,-141,-167,-117,-127,-83,-216,-189,-249,-237,-296,-297,-277,-252,-292,-277,-262,-223,-356,-277,-4866,-2489,-5257,-4922,-29989,-29990,-29990,-29991,-29993,-29994]} 1. e4 {[%emt 0:00:02]} e5 {[%emt 0:00:07]} 2. Nf3 {[%emt 0:00:03]} Nc6 {[%emt 0:00:32]} 3. Bc4 {[%emt 0:00:05]} Nf6 {[%emt 0:00:08]} 4. d3 {[%emt 0:00:03][%cal Bd2d3,Bd3d4][%mdl 32]} h6 {[%emt 0:00:31]} 5. Nc3 {[%emt 0:02:13]} Bb4 {[%emt 0:01:35]} 6. O-O {[%emt 0:03:38]} Bxc3 {[%emt 0:01:24]} 7. bxc3 {[%emt 0:00:04]} O-O {[%emt 0:03:18]} 8. Re1 {[%emt 0:04:09]} Re8 {[%emt 0:00:21]} 9. d4 {[%emt 0:15:48]} d6 {[%emt 0:11:56]} 10. Qd3 {[%emt 0:07:27] The position is equal.} Bg4 {[%emt 0:14:21]} 11. Bb5 {[%emt 0:00:06]} Nd7 {[%emt 0:08:31]} 12. Bxc6 {[%emt 0:04:05]} bxc6 {[%emt 0:00:07]} 13. Rb1 {[%emt 0:06:19]} Nb6 {[%emt 0:04:11]} 14. Nd2 {[%emt 0:05:47]} Be6 {[%emt 0:01:29]} 15. a3 {[%emt 0:04:37]} f6 {[%emt 0:04:20]} 16. Qg3 {[%emt 0:02:22]} Qd7 {[%emt 0:08:51]} 17. f4 {[%emt 0:02:48]} exf4 {[%emt 0:01:40]} 18. Qxf4 {[%emt 0:00:07]} f5 {[%emt 0:00:07]} 19. Qg3 {[%emt 0:05:19][%cal Oc3c4]} Kh7 {[%emt 0:08:31]} 20. e5 {[%emt 0:06:26]} Rf8 {[%emt 0:07:48]} ({Black should play} 20... Ba2 $17 21. Ra1 Bd5) 21. Qd3 {[%emt 0:08:46][%cal Oa3a4]} Qf7 {[%emt 0:02:34]} 22. Bb2 {[%emt 0:04:12]} Rab8 {[%emt 0:03:02]} 23. Ba1 {[%emt 0:02:40]} Ba2 {[%emt 0:03:04]} 24. Rbd1 {[%emt 0:00:56]} Bd5 {[%emt 0:00:28]} 25. exd6 {[%emt 0:03:45]} (25. Bb2 $17) 25... cxd6 $19 {[%emt 0:00:05]} 26. Bb2 {[%emt 0:03:54]} Nc4 $40 {[%emt 0:07:09][%mdl 128] Black wants a kill.} 27. Bc1 {[%emt 0:00:03]} Nxd2 {[%emt 0:00:16]} 28. Qxd2 {[%emt 0:01:05] White is weak on the light squares} Be4 {[%emt 0:00:53]} 29. Qf4 {[%emt 0:02:10]} Qd5 {[%emt 0:00:11]} 30. Rd2 {[%emt 0:02:54]} Rf6 {[%emt 0:00:25]} 31. Qf1 {[%emt 0:00:19]} Rb1 {[%emt 0:03:43]} (31... Qa5 $19 32. Rf2 Rg6 (32... Qxc3 33. Rxe4 fxe4 34. Rxf6 $17)) 32. c4 $17 {[%emt 0:00:19]} Qa5 {[%emt 0:00:49][%cal Ob1c1] Black has more active pieces.} 33. Re3 {[%emt 0:02:02] Now White is beyond hope.} (33. Rf2 $17) 33... Rg6 $19 {[%emt 0:00:35] [#] ( -> ...Qxd2)} 34. g3 {[%emt 0:01:07]} (34. Rf2 $142) 34... d5 {[%emt 0:00:50][%cal Of5f4] Hoping for ...f4!} 35. cxd5 {[%emt 0:01:16]} cxd5 {[%emt 0:00:08][%cal Of5f4]} 36. Rf2 {[%emt 0:00:41]} Qb6 {[%emt 0:01:45][%cal Og6c6]} 37. c3 {[%emt 0:00:22]} Qb8 {[%emt 0:00:14][%cal Of5f4] [#] Threatens to win with ...f4!} 38. Re1 {[%emt 0:00:38]} Qb7 {[%emt 0:02:32]} 39. Re3 {[%emt 0:00:43]} (39. Rxf5 {keeps fighting.} Bxf5 40. Qxf5) 39... Qc7 {[%emt 0:00:32][%cal Of5f4] ...f4! would now be deadly.} 40. Rb2 $2 {[%emt 0:00:36]} (40. Re1) 40... Rxb2 {[%emt 0:00:12]} 41. Bxb2 {[%emt 0:30:02]} f4 {[%emt 0:30:01]} 42. Re1 {[%emt 0:00:00]} fxg3 {[%emt 0:00:00] Black mates.} 43. h4 {[%emt 0:00:00]} Rf6 {[%emt 0:00:00]} 44. Qh3 {[%emt 0:00:00]} Qf4 {[%emt 0:00:00] Weighted Error Value: White=0.56/Black=0.13 (very precise) .  Mistake:       	White=5     	Black=2      Inaccurate:     	White=4     	Black=1      OK:         	White=8     	Black=14     Best:        	White=1     	Black=1} 0-1

[Event "Sardinia World Festival-A 2024"]
[Site "Orosei"]
[Date "2024.05.01"]
[Round "6.39"]
[White "Kochavi, Ori"]
[Black "Nurgaliyev, Sauat"]
[Result "1-0"]
[ECO "B93"]
[WhiteElo "2406"]
[BlackElo "2262"]
[Annotator "TA"]
[PlyCount "83"]
[EventDate "2024.04.26"]
[EventType "swiss"]
[EventCountry "ITA"]
[SourceTitle "playchess.com"]
[Source "ChessBase"]
[SourceQuality "1"]
[TimeControl "40/5400+30:1800+30"]

{[%evp 14,83,0,0,0,0,0,0,0,0,0,0,0,0,0,0,0,16,8,0,0,-52,-49,-50,-51,-57,0,0,163,157,155,156,172,114,613,609,572,498,476,517,537,537,29990,619,594,525,513,25,519,485,502,505,1566,1519,29988,29988,29989,883,1431,0,29989,29989,29992,29989,29988,2215,29991,29992,29992,29988,29997,29998]} 1. e4 {[%emt 0:00:17]} c5 {[%emt 0:00:20]} 2. Nf3 {[%emt 0:00:02]} d6 {[%emt 0:00:13]} 3. d4 {[%emt 0:00:03]} cxd4 {[%emt 0:00:07]} 4. Nxd4 {[%emt 0:00:01]} Nf6 {[%emt 0:00:08]} 5. Nc3 {[%emt 0:00:03]} a6 {[%emt 0:00:06]} 6. f4 {[%emt 0:00:03]} e5 {[%emt 0:01:27]} 7. Nf3 {[%emt 0:00:24]} Nbd7 {[%emt 0:00:39][%cal Bb8d7,Bd7c5,Bc5e6][%mdl 32]} 8. a4 {[%emt 0:00:08][%cal Ba2a4,Ba4a5][%mdl 32]} Qc7 {[%emt 0:03:35]} 9. a5 {[%emt 0:00:05]} Be7 {[%emt 0:00:59]} 10. g4 {[%emt 0:00:08][%cal Bg2g4,Bg4g5][%mdl 32]} Nc5 {[%emt 0:09:19] The position is equal.} 11. g5 $1 {[%emt 0:00:08]} Nfxe4 {[%emt 0:00:38]} 12. Nd5 {[%emt 0:00:04]} Qd8 {[%emt 0:03:08]} 13. b4 {[%emt 0:06:17]} Ne6 {[%emt 0:02:56]} 14. Bd3 {[%emt 0:19:08]} (14. Qd3 $5 f5 $8 15. Nb6 $14 (15. fxe5 dxe5 16. Qb3 Nd4 $17)) 14... f5 {[%emt 0:03:15]} 15. Nh4 {[%emt 0:09:42]} g6 {[%emt 0:05:56] [#]} 16. Nxf5 $1 {[%emt 0:01:44]} gxf5 {[%emt 0:04:31]} 17. Bxe4 {[%emt 0:00:11]} (17. Qh5+ $11 Kd7 18. Nb6+ Kc7 19. Nxa8+ Kb8 20. Nb6) 17... fxe4 $15 {[%emt 0:03:14]} 18. Qh5+ {[%emt 0:00:05]} Kd7 {[%emt 0:01:21]} 19. f5 {[%emt 0:00:55]} Kc6 {[%emt 0:11:38]} (19... Nxg5 $2 20. Bxg5 Bxg5 21. Qf7+ Be7 (21... Kc6 $2 22. Ra3 $18) 22. f6 $18) ({Black should try} 19... Nd4 $1 $15 20. f6 Qe8 (20... Nxc2+ $2 21. Kd2 $18) 21. Qh3+ Kd8 22. fxe7+ Qxe7) 20. c4 $11 {[%emt 0:21:01] Qf7 would now be deadly.} Bxg5 $2 {[%emt 0:08:00]} (20... Nxg5 $2 21. b5+ (21. Nxe7+ Qxe7 22. Bxg5 Qf8 $18) 21... Kd7 22. Bxg5 Bxg5 23. Qf7+ Be7 24. f6 $18) (20... Nd4 $11 {and Black has nothing to worry.} 21. f6 Bxf6 22. gxf6 Be6 (22... Nc2+ 23. Kf2 $11)) 21. fxe6 $18 {[%emt 0:09:40]} Bh4+ {[%emt 0:00:12]} 22. Ke2 {[%emt 0:00:20] Some like it hot. White is much more active.} Bxe6 {[%emt 0:00:38][%cal Oh8g8,Bc8e6,Be6d5,Bd5c6][%mdl 32] Threatens to win with ...Rg8!} 23. Be3 {[%emt 0:00:04][%cal Ob4b5] Black must now prevent b5+!} Rf8 $2 {[%emt 0:14:21][%mdl 8192]} (23... Be7 $16) 24. Qxh7 {[%emt 0:04:53] Threatening mate with b5+.} Bxd5 {[%emt 0:06:03]} 25. b5+ {[%emt 0:00:47]} axb5 {[%emt 0:00:04]} 26. cxb5+ {[%emt 0:00:05]} (26. cxd5+ Kxd5 27. Qxb7+ Ke6 $18) 26... Kxb5 {[%emt 0:00:16]} 27. Rhb1+ {[%emt 0:05:22]} Kc4 {[%emt 0:00:45]} 28. Rxb7 {[%emt 0:05:31]} (28. Ra4+ $142 Kc3 29. Rxe4 Rf2+ 30. Bxf2 Qg5 31. Qc7+ (31. Qxh4 Qd2+ 32. Kf1 Bxe4 $18) (31. Re3+ Qxe3+ 32. Bxe3 Bc4+ 33. Kd1 Bb3+ 34. Rxb3+ Kxb3 35. Qxb7+ Kc3 36. Qxa8 Kd3) 31... Bc6 32. Qxd6 (32. Rxh4 Qd2+ 33. Kf1 Qd3+ 34. Ke1 Qxb1+ 35. Ke2 Qd3+ 36. Ke1 Qd2+ 37. Kf1 Rf8 38. Rh3+ Kc2 39. Qh7+ e4) 32... Qh5+ 33. Kf1) 28... Bc6 {[%emt 0:03:04] [#]} 29. Ra4+ $3 {[%emt 0:00:07][%mdl 512]} Kd5 {[%emt 0:00:40]} 30. Qxe4+ {[%emt 0:00:13]} Ke6 {[%emt 0:00:01]} 31. Qxc6 {[%emt 0:00:08][%cal Oa4h4] Intending Rxh4! and mate.} Rc8 {[%emt 0:03:55]} 32. Qe4 {[%emt 0:00:16]} Bg5 {[%emt 0:04:41]} (32... Qf6 $142 33. Qg4+ (33. Qxh4 Qf1+ 34. Kd2 Qc1+ 35. Ke2 Rc2+ 36. Kd3 Rc3+ 37. Ke4 Rxe3#) 33... Qf5) 33. Qg6+ {[%emt 0:06:51]} Bf6 {[%emt 0:03:24]} 34. Qg4+ {[%emt 0:05:13]} Kd5 {[%emt 0:00:01]} 35. Qe4+ {[%emt 0:00:34]} (35. Ra2 $142 Rc3 36. Rd2+ (36. a6 Rxe3+ 37. Kxe3 Bg5+ 38. Ke2 Rf4 $18) 36... Kc6 37. a6 Rxe3+ 38. Kxe3 Bg5+ 39. Kd3 Rf3+ 40. Qxf3+ d5 41. Rc2+ Kd6 42. Qf5) 35... Ke6 {[%emt 0:00:02]} 36. Qg4+ $40 {[%emt 0:00:04][%mdl 128] White has some attack.} (36. Bb6 $18 Qe8 37. Qg4+ Kd5 38. Qf3+ e4 39. Qf5+ Kc6 40. Rc7+ (40. Qxe4+ $2 {is the wrong capture.} Qxe4+ 41. Rxe4 Kxb7 $19) 40... Rxc7 41. Rc4+ (41. Qxe4+ $2 {loses.} Qxe4+ 42. Rxe4 Rh7 $19) 41... Kb7 42. Rxc7+ Kb8 43. a6) 36... Kd5 {[%emt 0:00:08]} 37. Rb5+ {[%emt 0:04:09]} Kc6 {[%emt 0:00:56]} 38. Rb6+ {[%emt 0:00:04]} Kd5 {[%emt 0:00:14]} 39. Rab4 {[%emt 0:01:07]} (39. Qf5 $142 Qxb6 40. axb6 Bh8 41. Ra5+ Kc6 42. Qg4 Rfd8 43. Qc4+ Kb7 44. Qd5+ Rc6 45. Ra7+ (45. Qf7+ Rd7 46. Qxd7+ Kb8) 45... Kb8 46. Qxc6 Rg8 47. Qc7#) 39... Rg8 {[%emt 0:01:51]} 40. R4b5+ {[%emt 0:00:12] White mates.} Rc5 {[%emt 0:00:05]} 41. Qf3+ {[%emt 0:30:09]} e4 {[%emt 0:30:34]} 42. Qf5+ {[%emt 0:00:06] Weighted Error Value: White=0.31/Black=0.99.  Loses game:     	---       	Black=3      Mistake:       	White=2     	Black=2      Inaccurate:     	---       	Black=2      OK:         	White=9     	Black=8      Best:        	White=6     	Black=3      Strong:       	White=1     	---} 1-0

[Event "Sardinia World Festival-A 2024"]
[Site "Orosei"]
[Date "2024.05.01"]
[Round "6.40"]
[White "Chitre Arush"]
[Black "Carlo, Emanuele"]
[Result "1/2-1/2"]
[ECO "A47"]
[WhiteElo "2210"]
[BlackElo "2363"]
[Annotator "TA"]
[PlyCount "85"]
[EventDate "2024.04.26"]
[EventType "swiss"]
[EventCountry "ITA"]
[SourceTitle "playchess.com"]
[Source "ChessBase"]
[SourceQuality "1"]
[TimeControl "40/5400+30:1800+30"]

{[%evp 13,85,0,12,-8,-6,-31,-12,-14,-23,-22,-11,-16,-8,0,10,0,0,0,0,0,0,0,9,0,18,0,0,-7,25,-63,27,12,69,29,55,35,175,194,233,200,212,238,293,103,174,182,137,108,136,125,246,242,244,224,247,224,225,214,238,42,36,44,47,31,33,8,6,14,16,6,7,0,0,0]} 1. d4 {[%emt 0:01:38]} Nf6 {[%emt 0:00:21]} 2. Bf4 {[%emt 0:00:09]} e6 {[%emt 0:00:06]} 3. e3 {[%emt 0:00:14]} c5 {[%emt 0:00:06]} 4. Nf3 {[%emt 0:00:25]} Be7 {[%emt 0:00:18]} 5. c3 {[%emt 0:00:19]} O-O {[%emt 0:00:16]} 6. Bd3 {[%emt 0:00:13]} b6 {[%emt 0:00:35]} 7. Nbd2 {[%emt 0:00:23]} Bb7 {[%emt 0:00:48]} 8. O-O {[%emt 0:00:46]} Nh5 {[%emt 0:04:02]} 9. Bg3 {[%emt 0:05:11]} Nxg3 {[%emt 0:00:07]} 10. hxg3 {[%emt 0:00:02]} d6 {[%emt 0:01:51]} 11. Qe2 {[%emt 0:01:28]} Nd7 {[%emt 0:01:39]} 12. e4 {[%emt 0:00:22]} g6 {[%emt 0:03:59]} 13. Rfe1 {[%emt 0:03:15]} Bf6 {[%emt 0:12:18]} 14. Rad1 {[%emt 0:03:25]} Bg7 {[%emt 0:00:59]} 15. Ba6 {[%emt 0:08:21]} Bxa6 {[%emt 0:08:21]} 16. Qxa6 {[%emt 0:00:09]} Qc7 {[%emt 0:00:10]} 17. g4 {[%emt 0:09:11]} Rac8 {[%emt 0:04:41]} 18. Qd3 {[%emt 0:03:47]} c4 {[%emt 0:02:29]} 19. Qe3 {[%emt 0:05:32]} b5 {[%emt 0:00:36]} 20. e5 {[%emt 0:05:39]} Nb6 {[%emt 0:05:48]} 21. Qg5 {[%emt 0:08:29]} (21. exd6 $11 Qxd6 22. Ne4) 21... Qd8 {[%emt 0:10:28]} ({Better is} 21... dxe5 $15 22. dxe5 h6) 22. Qf4 {[%emt 0:03:56]} Nd5 {[%emt 0:04:19]} (22... b4 $11) 23. Qg3 {[%emt 0:02:14]} dxe5 {[%emt 0:00:59]} 24. dxe5 {[%emt 0:03:31]} h6 {[%emt 0:02:10]} (24... g5 $14) 25. g5 $1 $18 {[%emt 0:06:37]} hxg5 {[%emt 0:01:17]} 26. Ne4 {[%emt 0:04:05]} (26. Qxg5 Qxg5 27. Nxg5 Nf4 $17) 26... Qe7 {[%emt 0:05:02]} 27. Nfxg5 {[%emt 0:01:49] Threatens to win with Nd6.} (27. Nexg5 Bh6 28. Ne4 Bg7) 27... Bh6 {[%emt 0:00:55] [#]} 28. Nh3 {[%emt 0:04:49]} (28. Nxe6 $1 $18 {and the rest is easy.} fxe6 (28... Qxe6 $2 {loses.} 29. Rxd5 Bg7 30. Red1 $18) 29. Qxg6+ Bg7 30. Ng5) 28... Kh7 {[%emt 0:04:13]} (28... Rc6 $16 {keeps fighting.}) 29. Rd4 {[%emt 0:02:53]} Rh8 {[%emt 0:00:54]} 30. Red1 {[%emt 0:01:13] White is more active.} a6 {[%emt 0:03:17]} 31. Nd6 {[%emt 0:04:32][%cal Od4h4] Hoping for Rh4!} Rcf8 {[%emt 0:02:31]} (31... Rc6 $16 32. a3 Rc5) 32. Rh4 {[%emt 0:01:47]} f5 {[%emt 0:06:17]} 33. exf6 {[%emt 0:01:49]} Qxf6 {[%emt 0:02:25]} 34. Ng5+ {[%emt 0:02:49][%cal Bh3g5,Bg5e4,Be4d6][%mdl 32]} Kg7 {[%emt 0:01:48] [#]} 35. Nge4 {[%emt 0:02:47] Excellent horsemanship.} ({Don't do} 35. Nde4 $6 Qf5) 35... Qf4 {[%emt 0:02:42]} 36. Qh2 {[%emt 0:03:56]} (36. Rxf4 $18 {[%cal Of4f7] White wants to mate with Rf7+!} Bxf4 37. Ne8+ (37. Qg4 Bh2+ 38. Kh1 Bxd6+ 39. Kg1 Ne3 $11) 37... Rxe8 38. Qg4 Bh2+ 39. Kf1) 36... Qxh2+ {[%emt 0:00:57]} 37. Rxh2 {[%emt 0:00:06]} Bf4 {[%emt 0:02:08]} 38. Rxh8 {[%emt 0:00:17]} Rxh8 {[%emt 0:00:32]} 39. g3 {[%emt 0:00:07]} Bxd6 {[%emt 0:00:09] The position is equal.} 40. Nxd6 {[%emt 0:00:13]} Kf6 {[%emt 0:01:40]} 41. Ne4+ {[%emt 0:02:25]} Ke7 {[%emt 0:00:10]} 42. Nc5 {[%emt 0:00:49]} Rc8 {[%emt 0:01:07]} 43. Ne4 {[%emt 0:00:19] Black escapes into a draw.   Weighted Error Value: White=0.25 (precise) /Black=0.25 (precise) .  Missed win:     	White=2     	---        Mistake:       	White=1     	Black=5      Inaccurate:     	White=1     	Black=1      OK:         	White=9     	Black=11     Best:        	White=3     	Black=2      Strong:       	White=1     	---} 1/2-1/2

[Event "Sardinia World Festival-A 2024"]
[Site "Orosei"]
[Date "2024.05.01"]
[Round "6.41"]
[White "Balinski, Damian"]
[Black "Vagman, Roy"]
[Result "1/2-1/2"]
[ECO "A22"]
[WhiteElo "2204"]
[BlackElo "2357"]
[Annotator "RC"]
[PlyCount "224"]
[EventDate "2024.04.26"]
[EventType "swiss"]
[EventCountry "ITA"]
[SourceTitle "playchess.com"]
[Source "ChessBase"]
[SourceQuality "1"]
[TimeControl "40/5400+30:1800+30"]

1. c4 {[%emt 0:00:04]} Nf6 {[%emt 0:01:33]} 2. Nc3 {[%emt 0:00:06]} e5 {[%emt 0:06:06]} 3. g3 {[%emt 0:00:27]} Bb4 {[%emt 0:04:31]} 4. Bg2 {[%emt 0:02:41]} Bxc3 {[%emt 0:00:45]} 5. bxc3 {[%emt 0:00:41]} d6 {[%emt 0:05:21]} 6. Nf3 {[%emt 0:00:49]} O-O {[%emt 0:00:45]} 7. O-O {[%emt 0:00:22]} Re8 {[%emt 0:04:06]} 8. Rb1 {[%emt 0:06:40]} e4 {[%emt 0:06:27]} 9. Nd4 {[%emt 0:02:14]} b6 {[%emt 0:13:12]} 10. f3 {[%emt 0:09:48]} Bb7 {[%emt 0:16:35]} 11. fxe4 {[%emt 0:00:38]} Bxe4 {[%emt 0:01:33]} 12. d3 {[%emt 0:00:04]} Bxg2 {[%emt 0:00:14]} 13. Kxg2 {[%emt 0:00:02]} d5 {[%emt 0:14:31]} 14. Bg5 {[%emt 0:03:32]} Ng4 {[%emt 0:09:01]} 15. Bxd8 {[%emt 0:09:59]} Ne3+ {[%emt 0:00:12]} 16. Kf3 {[%emt 0:05:48]} Nxd1 {[%emt 0:00:05]} 17. Rfxd1 {[%emt 0:23:42]} Rxd8 {[%emt 0:00:10]} 18. Nb5 {[%emt 0:00:15]} Rd7 {[%emt 0:02:42]} 19. cxd5 {[%emt 0:01:34]} a6 {[%emt 0:00:10]} 20. Nd4 {[%emt 0:00:04]} Rxd5 {[%emt 0:00:08]} 21. e4 {[%emt 0:00:46]} Ra5 {[%emt 0:04:04]} 22. Rd2 {[%emt 0:01:04]} Nd7 {[%emt 0:00:27]} 23. Nc6 {[%emt 0:10:08]} Rc5 {[%emt 0:03:14]} 24. Ne7+ {[%emt 0:00:14]} Kh8 {[%emt 0:00:22]} 25. Nd5 {[%emt 0:00:14]} f5 {[%emt 0:00:51]} 26. c4 {[%emt 0:02:31]} fxe4+ {[%emt 0:00:17]} 27. Kxe4 {[%emt 0:00:44]} b5 {[%emt 0:02:42]} 28. Kd4 {[%emt 0:01:08]} Rc6 {[%emt 0:00:51]} 29. Re1 {[%emt 0:01:20]} bxc4 {[%emt 0:00:39]} 30. dxc4 {[%emt 0:03:09]} h6 {[%emt 0:01:31]} 31. Rde2 {[%emt 0:02:39]} Kh7 {[%emt 0:00:28]} 32. Re6 {[%emt 0:00:44]} Rxe6 {[%emt 0:00:35]} 33. Rxe6 {[%emt 0:00:02]} c5+ {[%emt 0:00:11]} 34. Kc3 {[%emt 0:01:38]} Rf8 {[%emt 0:00:33]} 35. Nf4 {[%emt 0:02:13]} a5 {[%emt 0:00:13]} 36. h4 {[%emt 0:00:27]} Rf5 {[%emt 0:00:51]} 37. Kd3 {[%emt 0:05:27]} Nf6 {[%emt 0:00:11]} 38. Re7 {[%emt 0:01:13]} Kg8 {[%emt 0:00:27]} 39. Ke3 {[%emt 0:02:11]} g5 {[%emt 0:00:32]} 40. hxg5 {[%emt 0:01:21]} hxg5 {[%emt 0:00:39]} 41. Nd3 {[%emt 0:04:49]} Rf1 {[%emt 0:05:38]} 42. Ra7 {[%emt 0:01:32]} g4 {[%emt 0:04:34]} 43. Rxa5 {[%emt 0:11:06]} Rf3+ {[%emt 0:00:29]} 44. Ke2 {[%emt 0:01:03]} Ne4 {[%emt 0:01:59]} 45. Nxc5 {[%emt 0:00:40]} Nxg3+ {[%emt 0:00:41]} 46. Kd2 {[%emt 0:01:31]} Nf1+ {[%emt 0:02:27]} 47. Ke2 {[%emt 0:00:37]} Ng3+ {[%emt 0:00:47]} 48. Kd2 {[%emt 0:00:04]} Nf5 {[%emt 0:06:50]} 49. Ne4 {[%emt 0:01:25]} g3 {[%emt 0:02:34]} 50. Nxg3 {[%emt 0:02:47]} Nxg3 {[%emt 0:00:14]} 51. Re5 {[%emt 0:00:26]} Kf7 {[%emt 0:03:27]} 52. c5 {[%emt 0:01:35]} Ra3 {[%emt 0:01:37]} 53. c6 {[%emt 0:02:45]} Ra6 {[%emt 0:01:53]} 54. Kc3 {[%emt 0:04:16]} Kf6 {[%emt 0:02:08]} 55. Re1 {[%emt 0:00:24]} Rxa2 {[%emt 0:01:36]} 56. Kb4 {[%emt 0:02:31]} Rc2 {[%emt 0:00:11]} 57. Kb5 {[%emt 0:00:40]} Nf5 {[%emt 0:00:31]} 58. Rf1 {[%emt 0:01:31]} Ke6 {[%emt 0:00:16]} 59. Kb6 {[%emt 0:00:26]} Ne7 {[%emt 0:00:38]} 60. Re1+ {[%emt 0:00:26]} Kd6 {[%emt 0:00:32]} 61. c7 {[%emt 0:00:43]} Nd5+ {[%emt 0:00:10]} 62. Kb5 {[%emt 0:00:21]} Rxc7 {[%emt 0:00:05]} 63. Rh1 {[%emt 0:00:43]} Rc5+ {[%emt 0:00:19]} 64. Ka4 {[%emt 0:00:04]} Rc3 {[%emt 0:00:48]} 65. Kb5 {[%emt 0:00:24]} Rc2 {[%emt 0:01:22]} 66. Rg1 {[%emt 0:00:44]} Nc3+ {[%emt 0:00:58]} 67. Kb4 {[%emt 0:00:24]} Ne4 {[%emt 0:00:16]} 68. Rh1 {[%emt 0:00:46]} Kd5 {[%emt 0:00:15]} 69. Rd1+ {[%emt 0:00:27]} Nd2 {[%emt 0:00:16]} 70. Rh1 {[%emt 0:00:18]} Kd4 {[%emt 0:00:05]} 71. Kb5 {[%emt 0:00:19]} Rc5+ {[%emt 0:00:17]} 72. Kb6 {[%emt 0:00:35]} Nc4+ {[%emt 0:00:05]} 73. Kb7 {[%emt 0:00:15]} Rb5+ {[%emt 0:00:19]} 74. Kc7 {[%emt 0:00:21]} Rg5 {[%emt 0:00:04]} 75. Kd7 {[%emt 0:00:22]} Rg6 {[%emt 0:00:08]} 76. Ke7 {[%emt 0:00:20]} Ne3 {[%emt 0:00:27]} 77. Kd7 {[%emt 0:00:32]} Kc5 {[%emt 0:00:47]} 78. Ra1 {[%emt 0:00:29]} Rd6+ {[%emt 0:00:20]} 79. Ke7 {[%emt 0:00:14]} Nd5+ {[%emt 0:00:08]} 80. Kf7 {[%emt 0:00:04]} Rf6+ {[%emt 0:00:05]} 81. Kg7 {[%emt 0:00:05]} Rf2 {[%emt 0:00:03]} 82. Kg6 {[%emt 0:00:42]} Kd6 {[%emt 0:01:09]} 83. Kg5 {[%emt 0:00:16]} Ke6 {[%emt 0:01:42]} 84. Re1+ {[%emt 0:00:18]} Kf7 {[%emt 0:00:01]} 85. Ra1 {[%emt 0:00:15]} Ne7 {[%emt 0:00:16]} 86. Ra8 {[%emt 0:01:11]} Nd5 {[%emt 0:00:47]} 87. Ra1 {[%emt 0:00:19]} Ke6 {[%emt 0:00:37]} 88. Re1+ {[%emt 0:00:05]} Kd6 {[%emt 0:00:02]} 89. Ra1 {[%emt 0:00:18]} Nc3 {[%emt 0:00:08]} 90. Ra8 {[%emt 0:00:37]} Ne4+ {[%emt 0:00:16]} 91. Kg4 {[%emt 0:00:31]} Ke5 {[%emt 0:01:09]} 92. Ra5+ {[%emt 0:00:25]} Ke6 {[%emt 0:00:26]} 93. Ra6+ {[%emt 0:00:16]} Nd6 {[%emt 0:00:04]} 94. Ra1 {[%emt 0:00:34]} Kd5 {[%emt 0:00:36]} 95. Ra5+ {[%emt 0:00:19]} Kd4 {[%emt 0:00:01]} 96. Ra4+ {[%emt 0:00:19]} Nc4 {[%emt 0:00:01]} 97. Ra1 {[%emt 0:00:57]} Ne3+ {[%emt 0:00:53]} 98. Kg5 {[%emt 0:00:33]} Ke5 {[%emt 0:00:08]} 99. Ra5+ {[%emt 0:00:54]} Nd5 {[%emt 0:00:07]} 100. Kg4 {[%emt 0:00:53]} Rf8 {[%emt 0:00:34]} 101. Kg3 {[%emt 0:00:29]} Kd4 {[%emt 0:01:07]} 102. Ra4+ {[%emt 0:00:14]} Kd3 {[%emt 0:00:01]} 103. Ra3+ {[%emt 0:00:22]} Nc3 {[%emt 0:00:01]} 104. Kg4 {[%emt 0:00:36]} Kd4 {[%emt 0:00:11]} 105. Ra1 {[%emt 0:00:49]} Ke5 {[%emt 0:00:17]} 106. Ra5+ {[%emt 0:01:11]} Ke4 {[%emt 0:00:00]} 107. Kg5 {[%emt 0:00:48]} Nd5 {[%emt 0:00:03]} 108. Kg6 {[%emt 0:00:36]} Ke5 {[%emt 0:00:21]} 109. Ra1 {[%emt 0:00:35]} Nf4+ {[%emt 0:00:09]} 110. Kg7 {[%emt 0:00:22]} Ne6+ {[%emt 0:00:01]} 111. Kg6 {[%emt 0:00:34]} Rg8+ {[%emt 0:00:16]} 112. Kf7 {[%emt 0:00:41]} Rg7+ {[%emt 0:00:19]} 1/2-1/2